fUSD/lending_fUSD_20250503
["ID","MTS","AMOUNT","RATE_DAILY","PERIOD"]
[359680949,1746246645090,-1049.31,0.00019579,2]
[359680951,1746246645100,-150.99,0.00019579,2]
[359680953,1746246645111,-150.0,0.00019581,2]
[359680955,1746246645121,-500.0,0.00019581,2]
[359680958,1746246645131,-500.0,0.00019581,2]
[359680960,1746246645141,-150.0,0.00019581,2]
[359680962,1746246645153,-500.0,0.00019581,2]
[359680964,1746246645163,-150.0,0.00019581,2]
[359680965,1746246645173,-500.0,0.00019581,2]
[359680967,1746246645182,-500.0,0.00019581,2]
[359680969,1746246645192,-150.0,0.00019581,2]
[359680971,1746246645201,-500.0,0.00019581,2]
[359680973,1746246645211,-150.0,0.00019581,2]
[359680975,1746246645220,-500.0,0.00019581,2]
[359680977,1746246645230,-150.0,0.00019581,2]
[359680979,1746246645240,-500.0,0.00019581,2]
[359680981,1746246645249,-500.0,0.00019581,2]
[359680983,1746246645258,-150.0,0.00019581,2]
[359680985,1746246645268,-500.0,0.00019581,2]
[359680987,1746246645277,-1032.98824874,0.0001961,2]
[359680989,1746246645287,-3595.28884373,0.00019619,2]
[359680991,1746246645296,-885.42901006,0.00019619,2]
[359680993,1746246645306,-3595.28884373,0.00019666,2]
[359680995,1746246645314,-885.42901006,0.00019666,2]
[359680997,1746246645323,-999.0,0.00019671,2]
[359680999,1746246645333,-3595.28884373,0.00019712,2]
[359681002,1746246645343,-885.42901006,0.00019712,2]
[359681004,1746246645352,-150.0,0.00019736,2]
[359681005,1746246645361,-150.0,0.00019742,2]
[359681006,1746246645371,-150.0,0.00019745,2]
[359681007,1746246645380,-150.0,0.00019746,2]
[359681008,1746246645389,-151.0,0.00019747,2]
[359681009,1746246645399,-151.0,0.00019748,2]
[359681011,1746246645408,-150.0,0.00019748,2]
[359681012,1746246645419,-151.0,0.00019748,2]
[359681014,1746246645430,-151.0,0.00019748,2]
[359681015,1746246645439,-151.0,0.00019748,2]
[359681016,1746246645450,-150.0,0.00019749,2]
[359681017,1746246645459,-18642.6203629,0.0001975,2]
[359681018,1746246645468,-150.0,0.00019752,2]
[359681019,1746246645478,-166.2109942,0.00019753,2]
[359681020,1746246645488,-330.48091671,0.00019753,2]
[359681021,1746246645498,-150.0,0.00019753,2]
[359681022,1746246645507,-150.0,0.00019753,2]
[359681023,1746246645517,-3595.28884373,0.00019759,2]
[359681024,1746246645526,-885.42901006,0.00019759,2]
[359681025,1746246645536,-150.0,0.00019762,2]
[359681026,1746246645545,-150.0,0.00019762,2]
[359681027,1746246645555,-150.0,0.00019773,2]
[359681028,1746246645565,-150.0,0.00019786,2]
[359681029,1746246645575,-1000.0,0.00019787,2]
[359681030,1746246645585,-1000.0,0.00019791,2]
[359681031,1746246645595,-150.0,0.00019796,2]
[359681032,1746246645604,-1000.0,0.00019798,2]
[359681033,1746246645614,-297.4074534,0.00019799,2]
[359681034,1746246645623,-11903.88005019,0.000198,2]
[359681035,1746246645633,-150.0,0.00019801,2]
[359681036,1746246645642,-166.2109942,0.00019802,2]
[359681037,1746246645652,-1000.0,0.00019803,2]
[359681038,1746246645661,-150.0,0.00019805,2]
[359681039,1746246645671,-3595.28884373,0.00019806,2]
[359681040,1746246645681,-885.42901006,0.00019806,2]
[359681041,1746246645691,-150.0,0.00019807,2]
[359681042,1746246645701,-150.0,0.00019809,2]
[359681043,1746246645710,-348.75959596,0.0001981,2]
[359681044,1746246645720,-150.0,0.00019817,2]
[359681045,1746246645729,-150.0,0.00019819,2]
[359681046,1746246645739,-150.0,0.00019829,2]
[359681047,1746246645749,-150.0,0.00019837,2]
[359681048,1746246645758,-2000.0,0.0001984,2]
[359681049,1746246645768,-200.0,0.0001984,2]
[359681050,1746246645778,-151.46858835,0.0001984,2]
[359681051,1746246645787,-1077.03046632,0.00019842,2]
[359681052,1746246645796,-12500.0,0.00019847,2]
[359681053,1746246645806,-450.0,0.0001985,2]
[359681054,1746246645815,-450.0,0.0001985,2]
[359681055,1746246645825,-166.2109942,0.00019851,2]
[359681056,1746246645835,-450.0,0.00019851,2]
[359681057,1746246645844,-450.0,0.00019851,2]
[359681058,1746246645854,-450.0,0.00019851,2]
[359681059,1746246645863,-450.0,0.00019851,2]
[359681060,1746246645873,-529.0,0.00019851,2]
[359681061,1746246645883,-450.0,0.00019851,2]
[359681062,1746246645892,-450.0,0.00019851,2]
[359681063,1746246645901,-450.0,0.00019851,2]
[359681064,1746246645911,-450.0,0.00019851,2]
[359681065,1746246645920,-450.0,0.00019851,2]
[359681066,1746246645930,-450.0,0.00019851,2]
[359681067,1746246645939,-450.0,0.00019851,2]
[359681068,1746246645949,-450.0,0.00019851,2]
[359681069,1746246645959,-450.0,0.00019851,2]
[359681070,1746246645968,-850.24,0.00019851,2]
[359681071,1746246645978,-846.333231,0.00019851,2]
[359681072,1746246645992,-450.0,0.00019851,2]
[359681073,1746246646002,-450.0,0.00019851,2]
[359681074,1746246646012,-483.0835328,0.00019851,2]
[359681075,1746246646021,-450.0,0.00019851,2]
[359681076,1746246646032,-617.722084,0.00019851,2]
[359681077,1746246646042,-450.0,0.00019851,2]
[359681078,1746246646051,-450.0,0.00019851,2]
[359681079,1746246646062,-450.0,0.00019851,2]
[359681080,1746246646072,-450.0,0.00019851,2]
[359681081,1746246646082,-652.98,0.00019851,2]
[359681082,1746246646091,-450.0,0.00019851,2]
[359681083,1746246646101,-450.0,0.00019851,2]
[359681084,1746246646111,-450.0,0.00019851,2]
[359681085,1746246646121,-450.0,0.00019851,2]
[359681086,1746246646131,-450.0,0.00019851,2]
[359681087,1746246646140,-450.0,0.00019851,2]
[359681088,1746246646150,-450.0,0.00019851,2]
[359681089,1746246646159,-450.0,0.00019851,2]
[359681090,1746246646169,-450.0,0.00019851,2]
[359681091,1746246646179,-450.0,0.00019851,2]
[359681092,1746246646189,-282.111077,0.00019851,2]
[359681093,1746246646198,-331.60792449,0.00019851,2]
[359681094,1746246646209,-450.0,0.00019851,2]
[359681095,1746246646219,-450.0,0.00019851,2]
[359681096,1746246646228,-450.0,0.00019851,2]
[359681097,1746246646238,-205.907361,0.00019851,2]
[359681098,1746246646247,-450.0,0.00019851,2]
[359681099,1746246646257,-450.0,0.00019851,2]
[359681100,1746246646267,-450.0,0.00019851,2]
[359681101,1746246646276,-450.0,0.00019851,2]
[359681102,1746246646286,-450.0,0.00019851,2]
[359681103,1746246646295,-476.41,0.00019851,2]
[359681104,1746246646304,-775.19,0.00019851,2]
[359681105,1746246646314,-450.0,0.00019851,2]
[359681106,1746246646323,-956.33,0.00019851,2]
[359681107,1746246646332,-610.14,0.00019851,2]
[359681108,1746246646342,-450.0,0.00019851,2]
[359681109,1746246646351,-5216.27,0.00019851,2]
[359681110,1746246646361,-450.0,0.00019851,2]
[359681111,1746246646370,-450.0,0.00019851,2]
[359681112,1746246646381,-450.0,0.00019851,2]
[359681113,1746246646390,-450.0,0.00019851,2]
[359681114,1746246646400,-450.0,0.00019851,2]
[359681115,1746246646409,-450.0,0.00019851,2]
[359681116,1746246646419,-450.0,0.00019851,2]
[359681117,1746246646428,-450.0,0.00019851,2]
[359681118,1746246646438,-450.0,0.00019851,2]
[359681119,1746246646447,-450.0,0.00019851,2]
[359681120,1746246646457,-450.0,0.00019851,2]
[359681121,1746246646467,-598.05,0.00019851,2]
[359681122,1746246646477,-450.0,0.00019851,2]
[359681123,1746246646488,-465.22,0.00019851,2]
[359681124,1746246646498,-677.78,0.00019851,2]
[359681125,1746246646509,-111044.15,0.00019851,2]
[359681126,1746246646520,-450.0,0.00019851,2]
[359681127,1746246646529,-2191.12,0.00019851,2]
[359681128,1746246646539,-450.0,0.00019851,2]
[359681129,1746246646549,-521.16,0.00019851,2]
[359681130,1746246646559,-450.0,0.00019851,2]
[359681131,1746246646569,-450.0,0.00019851,2]
[359681132,1746246646579,-450.0,0.00019851,2]
[359681133,1746246646589,-169.73308371,0.00019851,2]
[359681134,1746246646599,-450.0,0.00019851,2]
[359681135,1746246646609,-450.0,0.00019851,2]
[359681136,1746246646619,-450.0,0.00019851,2]
[359681137,1746246646629,-450.0,0.00019851,2]
[359681138,1746246646639,-450.0,0.00019851,2]
[359681139,1746246646649,-450.0,0.00019851,2]
[359681140,1746246646659,-450.0,0.00019851,2]
[359681141,1746246646668,-450.0,0.00019851,2]
[359681142,1746246646678,-465.11,0.00019851,2]
[359681143,1746246646687,-450.0,0.00019851,2]
[359681144,1746246646697,-450.0,0.00019851,2]
[359681145,1746246646707,-1225.07,0.00019851,2]
[359681146,1746246646717,-569.96,0.00019851,2]
[359681147,1746246646727,-450.0,0.00019851,2]
[359681148,1746246646736,-450.0,0.00019851,2]
[359681149,1746246646746,-1896.61,0.00019851,2]
[359681150,1746246646759,-486.12125161,0.00019851,2]
[359681151,1746246646771,-1395.96,0.00019851,2]
[359681152,1746246646781,-999.0,0.00019851,2]
[359681153,1746246646790,-450.0,0.00019851,2]
[359681154,1746246646800,-450.0,0.00019851,2]
[359681155,1746246646809,-667.6,0.00019851,2]
[359681156,1746246646819,-450.0,0.00019851,2]
[359681157,1746246646828,-450.0,0.00019851,2]
[359681158,1746246646838,-450.0,0.00019851,2]
[359681159,1746246646847,-525.84,0.00019851,2]
[359681160,1746246646856,-450.0,0.00019851,2]
[359681161,1746246646866,-450.0,0.00019851,2]
[359681162,1746246646876,-476.17,0.00019851,2]
[359681163,1746246646887,-450.0,0.00019851,2]
[359681164,1746246646896,-477.9,0.00019851,2]
[359681165,1746246646906,-4356.18,0.00019851,2]
[359681166,1746246646916,-450.0,0.00019851,2]
[359681167,1746246646925,-3257.3,0.00019851,2]
[359681168,1746246646935,-985.77,0.00019851,2]
[359681169,1746246646944,-450.0,0.00019851,2]
[359681170,1746246646954,-525.43,0.00019851,2]
[359681171,1746246646964,-1136.7,0.00019851,2]
[359681172,1746246646973,-450.0,0.00019851,2]
[359681173,1746246647046,-1521.3,0.00019851,2]
[359681174,1746246647057,-576.9,0.00019851,2]
[359681175,1746246647066,-450.0,0.00019851,2]
[359681176,1746246647077,-450.0,0.00019851,2]
[359681177,1746246647086,-2975.0,0.00019851,2]
[359681178,1746246647095,-450.0,0.00019851,2]
[359681179,1746246647105,-849.23,0.00019851,2]
[359681180,1746246647115,-450.0,0.00019851,2]
[359681181,1746246647124,-450.0,0.00019851,2]
[359681182,1746246647134,-450.0,0.00019851,2]
[359681183,1746246647143,-457.5,0.00019851,2]
[359681184,1746246647152,-450.0,0.00019851,2]
[359681185,1746246647161,-601.02,0.00019851,2]
[359681186,1746246647171,-492.77701312,0.00019851,2]
[359681187,1746246647180,-491.81617772,0.00019851,2]
[359681188,1746246647190,-450.0,0.00019851,2]
[359681189,1746246647199,-450.0,0.00019851,2]
[359681190,1746246647209,-500.59,0.00019851,2]
[359681191,1746246647218,-450.0,0.00019851,2]
[359681192,1746246647227,-488.1697104,0.00019851,2]
[359681193,1746246647236,-588.25,0.00019851,2]
[359681194,1746246647246,-977.01,0.00019851,2]
[359681195,1746246647256,-450.0,0.00019851,2]
[359681196,1746246647265,-450.0,0.00019851,2]
[359681197,1746246647275,-835.69,0.00019851,2]
[359681198,1746246647285,-450.0,0.00019851,2]
[359681199,1746246647295,-354.35488265,0.00019851,2]
[359681200,1746246647304,-1555.07,0.00019851,2]
[359681201,1746246647315,-450.0,0.00019851,2]
[359681202,1746246647324,-755.94,0.00019851,2]
[359681203,1746246647333,-1495.39,0.00019851,2]
[359681204,1746246647342,-450.0,0.00019851,2]
[359681205,1746246647352,-3995.65,0.00019851,2]
[359681206,1746246647361,-450.0,0.00019851,2]
[359681207,1746246647371,-450.0,0.00019851,2]
[359681208,1746246647381,-476.36,0.00019851,2]
[359681209,1746246647390,-462.15,0.00019851,2]
[359681210,1746246647399,-450.0,0.00019851,2]
[359681211,1746246647410,-450.0,0.00019851,2]
[359681212,1746246647419,-4605.11,0.00019851,2]
[359681213,1746246647429,-647.64,0.00019851,2]
[359681214,1746246647438,-5577.23,0.00019851,2]
[359681215,1746246647448,-450.0,0.00019851,2]
[359681216,1746246647458,-4104.92,0.00019851,2]
[359681217,1746246647467,-477.38,0.00019851,2]
[359681218,1746246647476,-450.0,0.00019851,2]
[359681219,1746246647485,-450.0,0.00019851,2]
[359681220,1746246647494,-450.0,0.00019852,2]
[359681221,1746246647503,-450.0,0.00019852,2]
[359681222,1746246647512,-450.0,0.00019852,2]
[359681223,1746246647522,-450.0,0.00019852,2]
[359681224,1746246647531,-450.0,0.00019852,2]
[359681225,1746246647540,-450.0,0.00019852,2]
[359681226,1746246647549,-450.0,0.00019852,2]
[359681227,1746246647558,-450.0,0.00019852,2]
[359681228,1746246647567,-450.0,0.00019852,2]
[359681229,1746246647577,-450.0,0.00019852,2]
[359681230,1746246647587,-317.40863215,0.00019852,2]
[359681231,1746246647596,-450.0,0.00019852,2]
[359681232,1746246647605,-450.0,0.00019852,2]
[359681233,1746246647614,-450.0,0.00019852,2]
[359681234,1746246647623,-450.0,0.00019852,2]
[359681235,1746246647632,-450.0,0.00019852,2]
[359681236,1746246647642,-450.0,0.00019852,2]
[359681237,1746246647651,-450.0,0.00019852,2]
[359681238,1746246647660,-450.0,0.00019852,2]
[359681239,1746246647669,-466.66,0.00019852,2]
[359681240,1746246647679,-450.0,0.00019852,2]
[359681241,1746246647688,-450.0,0.00019852,2]
[359681242,1746246647697,-450.0,0.00019852,2]
[359681243,1746246647706,-450.0,0.00019852,2]
[359681244,1746246647715,-450.0,0.00019852,2]
[359681245,1746246647725,-567.27,0.00019852,2]
[359681246,1746246647734,-450.0,0.00019852,2]
[359681247,1746246647743,-503.91,0.00019852,2]
[359681248,1746246647752,-545.5843728,0.00019852,2]
[359681249,1746246647762,-1075.83,0.00019852,2]
[359681250,1746246647771,-450.0,0.00019852,2]
[359681251,1746246647781,-450.0,0.00019852,2]
[359681252,1746246647790,-450.0,0.00019852,2]
[359681253,1746246647799,-450.0,0.00019852,2]
[359681254,1746246647809,-205.70456391,0.00019852,2]
[359681255,1746246647818,-450.0,0.00019852,2]
[359681256,1746246647827,-566.64,0.00019852,2]
[359681257,1746246647837,-575.34,0.00019852,2]
[359681258,1746246647846,-450.0,0.00019852,2]
[359681259,1746246647855,-450.0,0.00019852,2]
[359681260,1746246647865,-450.0,0.00019852,2]
[359681261,1746246647875,-1437.18,0.00019852,2]
[359681262,1746246647891,-477.03160307,0.00019852,2]
[359681263,1746246647900,-450.0,0.00019852,2]
[359681264,1746246647909,-450.0,0.00019852,2]
[359681265,1746246647920,-450.0,0.00019852,2]
[359681266,1746246647929,-712.59,0.00019852,2]
[359681267,1746246647939,-450.0,0.00019852,2]
[359681268,1746246647950,-612.19,0.00019852,2]
[359681269,1746246647961,-450.0,0.00019852,2]
[359681270,1746246647971,-545.69,0.00019852,2]
[359681271,1746246647982,-464.14593802,0.00019852,2]
[359681272,1746246647996,-503.9,0.00019852,2]
[359681273,1746246648005,-450.0,0.00019852,2]
[359681274,1746246648014,-450.0,0.00019852,2]
[359681275,1746246648024,-450.0,0.00019852,2]
[359681276,1746246648034,-551.57,0.00019852,2]
[359681277,1746246648042,-450.0,0.00019852,2]
[359681278,1746246648051,-450.0,0.00019852,2]
[359681279,1746246648061,-450.0,0.00019852,2]
[359681280,1746246648070,-450.0,0.00019852,2]
[359681281,1746246648079,-450.0,0.00019852,2]
[359681282,1746246648089,-450.0,0.00019852,2]
[359681283,1746246648099,-699.18,0.00019852,2]
[359681284,1746246648108,-450.0,0.00019852,2]
[359681285,1746246648118,-450.0,0.00019852,2]
[359681286,1746246648127,-450.0,0.00019852,2]
[359681287,1746246648136,-450.0,0.00019852,2]
[359681288,1746246648146,-752.0,0.00019852,2]
[359681289,1746246648155,-585.04,0.00019852,2]
[359681290,1746246648165,-1720.83,0.00019852,2]
[359681291,1746246648175,-742.65,0.00019852,2]
[359681292,1746246648184,-450.0,0.00019852,2]
[359681293,1746246648194,-450.0,0.00019852,2]
[359681294,1746246648203,-450.0,0.00019852,2]
[359681295,1746246648212,-498.21,0.00019852,2]
[359681296,1746246648222,-585.16,0.00019852,2]
[359681297,1746246648232,-663.64,0.00019852,2]
[359681298,1746246648241,-450.0,0.00019852,2]
[359681299,1746246648251,-450.0,0.00019852,2]
[359681300,1746246648260,-450.0,0.00019852,2]
[359681301,1746246648270,-450.0,0.00019852,2]
[359681302,1746246648279,-450.0,0.00019852,2]
[359681303,1746246648289,-755.25,0.00019852,2]
[359681304,1746246648299,-1168.72,0.00019852,2]
[359681305,1746246648308,-450.0,0.00019852,2]
[359681306,1746246648318,-450.0,0.00019852,2]
[359681307,1746246648327,-471.32532163,0.00019852,2]
[359681308,1746246648337,-450.0,0.00019852,2]
[359681309,1746246648346,-450.0,0.00019852,2]
[359681310,1746246648356,-560.08,0.00019852,2]
[359681311,1746246648366,-450.0,0.00019852,2]
[359681312,1746246648376,-365.0454029,0.00019852,2]
[359681313,1746246648385,-568.95,0.00019852,2]
[359681314,1746246648395,-450.0,0.00019852,2]
[359681315,1746246648404,-450.0,0.00019852,2]
[359681316,1746246648414,-450.0,0.00019852,2]
[359681317,1746246648425,-450.0,0.00019852,2]
[359681318,1746246648435,-450.0,0.00019852,2]
[359681319,1746246648444,-993.17,0.00019852,2]
[359681320,1746246648454,-450.0,0.00019852,2]
[359681321,1746246648463,-450.0,0.00019852,2]
[359681322,1746246648472,-450.0,0.00019852,2]
[359681323,1746246648482,-450.0,0.00019852,2]
[359681324,1746246648491,-1432.92,0.00019852,2]
[359681325,1746246648504,-516.14,0.00019852,2]
[359681326,1746246648513,-450.0,0.00019852,2]
[359681327,1746246648523,-497.75,0.00019852,2]
[359681328,1746246648532,-450.0,0.00019852,2]
[359681329,1746246648542,-450.0,0.00019852,2]
[359681330,1746246648551,-604.28,0.00019852,2]
[359681331,1746246648560,-450.0,0.00019852,2]
[359681332,1746246648569,-450.0,0.00019852,2]
[359681333,1746246648579,-450.0,0.00019852,2]
[359681334,1746246648588,-450.0,0.00019852,2]
[359681335,1746246648597,-632.47,0.00019852,2]
[359681336,1746246648606,-1648.11,0.00019852,2]
[359681337,1746246648615,-450.0,0.00019852,2]
[359681338,1746246648624,-450.0,0.00019852,2]
[359681339,1746246648633,-450.0,0.00019852,2]
[359681340,1746246648643,-680.06,0.00019852,2]
[359681341,1746246648652,-450.0,0.00019852,2]
[359681342,1746246648661,-450.0,0.00019852,2]
[359681343,1746246648671,-808.75,0.00019852,2]
[359681344,1746246648680,-450.0,0.00019852,2]
[359681345,1746246648689,-450.0,0.00019852,2]
[359681346,1746246648699,-450.0,0.00019852,2]
[359681347,1746246648709,-450.0,0.00019852,2]
[359681348,1746246648718,-463.62,0.00019852,2]
[359681349,1746246648727,-462.88,0.00019852,2]
[359681350,1746246648737,-977.42,0.00019852,2]
[359681351,1746246648746,-902.26,0.00019852,2]
[359681352,1746246648756,-450.0,0.00019852,2]
[359681353,1746246648765,-450.0,0.00019852,2]
[359681354,1746246648775,-818.31,0.00019852,2]
[359681355,1746246648785,-450.0,0.00019852,2]
[359681356,1746246648794,-450.0,0.00019852,2]
[359681357,1746246648804,-1076.72,0.00019852,2]
[359681358,1746246648814,-450.0,0.00019852,2]
[359681359,1746246648823,-4493.69,0.00019852,2]
[359681360,1746246648833,-450.0,0.00019852,2]
[359681361,1746246648842,-548.9,0.00019852,2]
[359681362,1746246648852,-450.0,0.00019852,2]
[359681363,1746246648861,-450.0,0.00019852,2]
[359681364,1746246648871,-81628.11,0.00019852,2]
[359681365,1746246648880,-558.66,0.00019852,2]
[359681366,1746246648889,-450.0,0.00019852,2]
[359681367,1746246648898,-450.0,0.00019852,2]
[359681368,1746246648908,-450.0,0.00019852,2]
[359681369,1746246648918,-4831.13,0.00019852,2]
[359681370,1746246648927,-2480.99,0.00019852,2]
[359681371,1746246648937,-450.0,0.00019852,2]
[359681372,1746246648946,-27671.24,0.00019852,2]
[359681373,1746246648956,-745.52,0.00019852,2]
[359681374,1746246648966,-1087.32,0.00019852,2]
[359681375,1746246648975,-450.0,0.00019852,2]
[359681376,1746246648985,-1820.53,0.00019852,2]
[359681377,1746246648994,-450.0,0.00019852,2]
[359681378,1746246649004,-450.0,0.00019852,2]
[359681379,1746246649015,-794.37,0.00019852,2]
[359681380,1746246649024,-15516.38,0.00019852,2]
[359681381,1746246649034,-2238.11,0.00019852,2]
[359681382,1746246649044,-300.0,0.00019852,2]
[359681383,1746246649054,-712.48,0.00019852,2]
[359681384,1746246649064,-486.43,0.00019852,2]
[359681385,1746246649073,-454.53686391,0.00019852,2]
[359681386,1746246649083,-473.26684363,0.00019852,2]
[359681387,1746246649092,-450.0,0.00019852,2]
[359681388,1746246649101,-450.0,0.00019852,2]
[359681389,1746246649111,-450.0,0.00019852,2]
[359681390,1746246649120,-450.0,0.00019852,2]
[359681391,1746246649130,-588.96,0.00019852,2]
[359681392,1746246649140,-450.0,0.00019852,2]
[359681393,1746246649149,-450.0,0.00019852,2]
[359681394,1746246649159,-450.0,0.00019852,2]
[359681395,1746246649168,-472.15560293,0.00019852,2]
[359681396,1746246649178,-450.0,0.00019852,2]
[359681397,1746246649188,-2649.35,0.00019852,2]
[359681398,1746246649198,-450.0,0.00019852,2]
[359681399,1746246649207,-460.4631633,0.00019852,2]
[359681400,1746246649217,-450.0,0.00019852,2]
[359681401,1746246649226,-450.0,0.00019852,2]
[359681402,1746246649236,-499.31,0.00019852,2]
[359681403,1746246649246,-450.0,0.00019852,2]
[359681404,1746246649256,-455.94,0.00019852,2]
[359681405,1746246649266,-450.0,0.00019852,2]
[359681406,1746246649275,-1040.89,0.00019852,2]
[359681407,1746246649285,-450.0,0.00019852,2]
[359681408,1746246649295,-450.0,0.00019852,2]
[359681409,1746246649305,-450.96282215,0.00019852,2]
[359681410,1746246649315,-450.0,0.00019852,2]
[359681411,1746246649325,-1081.24,0.00019852,2]
[359681412,1746246649335,-450.0,0.00019852,2]
[359681413,1746246649345,-515.53,0.00019852,2]
[359681414,1746246649355,-450.0,0.00019852,2]
[359681415,1746246649365,-450.0,0.00019852,2]
[359681416,1746246649374,-450.0,0.00019852,2]
[359681417,1746246649384,-450.0,0.00019852,2]
[359681418,1746246649394,-450.0,0.00019853,2]
[359681419,1746246649404,-450.0,0.00019853,2]
[359681420,1746246649413,-3595.28884373,0.00019853,2]
[359681421,1746246649423,-885.42901006,0.00019853,2]
[359681422,1746246649432,-150.0,0.00019855,2]
[359681423,1746246649441,-500.0,0.00019855,2]
[359681424,1746246649451,-500.0,0.00019855,2]
[359681425,1746246649461,-150.0,0.00019855,2]
[359681426,1746246649470,-500.0,0.00019855,2]
[359681427,1746246649480,-222.40857925,0.00019855,2]
[359681428,1746246649489,-500.0,0.00019855,2]
[359681429,1746246649499,-500.0,0.00019855,2]
[359681430,1746246649508,-228.28560537,0.00019855,2]
[359681431,1746246649518,-500.0,0.00019855,2]
[359681432,1746246649528,-150.0,0.00019855,2]
[359681433,1746246649537,-500.0,0.00019855,2]
[359681434,1746246649546,-150.0,0.00019855,2]
[359681435,1746246649556,-500.0,0.00019855,2]
[359681436,1746246649567,-500.0,0.00019855,2]
[359681437,1746246649577,-500.0,0.00019855,2]
[359681438,1746246649586,-887.45485732,0.00019855,2]
[359681439,1746246649595,-12500.0,0.00019856,2]
[359681440,1746246649604,-150.0,0.00019859,2]
[359681441,1746246649614,-12500.0,0.00019865,2]
[359681442,1746246649623,-152.88244308,0.00019869,2]
[359681443,1746246649633,-501.88937331,0.00019873,2]
[359681444,1746246649642,-500.68219032,0.00019873,2]
[359681445,1746246649652,-500.0,0.00019873,2]
[359681446,1746246649661,-500.0,0.00019873,2]
[359681447,1746246649670,-402.99682489,0.00019873,2]
[359681448,1746246649680,-501.90564023,0.00019873,2]
[359681449,1746246649689,-500.0,0.00019873,2]
[359681450,1746246649699,-500.0,0.00019873,2]
[359681451,1746246649708,-500.0,0.00019873,2]
[359681452,1746246649717,-500.0,0.00019873,2]
[359681453,1746246649726,-500.0,0.00019873,2]
[359681454,1746246649735,-500.0,0.00019873,2]
[359681455,1746246649744,-12500.0,0.00019874,2]
[359681456,1746246649754,-4093.995,0.00019874,2]
[359681457,1746246649763,-323.067,0.00019874,2]
[359681458,1746246649772,-150.0,0.00019876,2]
[359681459,1746246649782,-150.0,0.00019876,2]
[359681460,1746246649791,-150.0,0.00019877,2]
[359681461,1746246649801,-1000.0,0.00019878,2]
[359681462,1746246649810,-150.0,0.00019882,2]
[359681463,1746246649819,-12500.0,0.00019882,2]
[359681464,1746246649829,-150.0,0.00019885,2]
[359681465,1746246649838,-150.0,0.00019887,2]
[359681466,1746246649848,-3253.30568586,0.00019889,2]
[359681467,1746246649857,-12500.0,0.00019891,2]
[359681468,1746246649866,-150.0,0.00019894,2]
[359681469,1746246649876,-2780.94450003,0.000199,2]
[359681470,1746246649886,-636.79516556,0.000199,2]
[359681471,1746246649895,-166.2109942,0.000199,2]
[359681472,1746246649905,-12500.0,0.000199,2]
[359681473,1746246649914,-28599.50222021,0.000199,2]
[359681474,1746246649923,-165.34908229,0.000199,2]
[359681475,1746246649933,-3015.50152939,0.000199,3]
[359681476,1746246649942,-1154.02,0.000199,2]
[359681477,1746246649952,-352.02,0.000199,2]
[359681478,1746246649961,-3595.28884373,0.000199,2]